Cogmind - Beta 16 --- EXPLORER MODE // 2026.01.07 @ 11:04:32 Player: K.K.Y. Result: Destroyed by 4N-AKC(R) with Subdweller Laser Performance ------------- Evolutions (0) 0 Regions Visited (3) 600 Robots Destroyed (44) 220 Value Destroyed (1205) 1205 Prototype IDs (12) 240 Alien Tech Used (0) 0 Bonus (-42) -42 TOTAL SCORE: 2223 Bonus ------- Friendly Fire -42 Cogmind --------- Core Integrity 0/250 Matter 250/300 Energy 26/100 System Corruption 0% Temperature Cool (6) Movement Core (1450) Ox28 Location -10/Subcaves Parts ------- > --- POWER (1) -------- (None) > --- PROPULSION (2) --- (None) > --- UTILITY (3) ------ Huge Storage Unit > --- WEAPON (2) ------- Beamcaster > --- INVENTORY (25) --- Improved Heat Sink Improved Heat Sink Medium Storage Unit Structural Scanner Sensor Array Sensor Array Riot Gun Subdweller Beam Cannon Subdweller Beam Cannon Subdweller Beam Cannon Makeshift Shrapnel Gun Mining Laser Multitool Makeshift Axe Makeshift Spear Peak State ------------ > --- POWER ------------ Ion Engine > --- PROPULSION ------- Light Treads Spiked Treads > --- UTILITY ---------- Improved Heat Sink Huge Storage Unit Light Armor Plating > --- WEAPON ----------- Beamcaster Battle Cannon > --- INVENTORY -------- Improved Heat Sink Improved Heat Sink Medium Storage Unit Structural Scanner Sensor Array Sensor Array Riot Gun Subdweller Beam Cannon Subdweller Beam Cannon Makeshift Shrapnel Gun Mining Laser Multitool Makeshift Axe Makeshift Spear [Rating: 19] Favorites ----------- Power Ion Engine Engine Ion Engine Propulsion Light Treads Treads Light Treads Utility Core Shielding Device Improved Heat Sink Storage Medium Storage Unit Protection Core Shielding Weapon Medium Laser Energy Gun Medium Laser Ballistic Cannon Battle Cannon Build | -11 -10 -10 -10 ------- Run | Yrd Mat Min Sub Slots Evolved 1 | . 1 . . Power . | . . . . Propulsion . | . . . . Utility 1 | . 1 . . Weapon . | . . . . Parts Attached 17 | 8 1 3 5 Power 1 | 1 . . . Engine 1 | 1 . . . Core . | . . . . Reactor . | . . . . Propulsion 5 | 2 1 1 1 Treads 5 | 2 1 1 1 Leg . | . . . . Wheel . | . . . . Hover . | . . . . Flight . | . . . . Utility 6 | 3 . . 3 Device 1 | . . . 1 Storage 2 | 1 . . 1 Processor . | . . . . Hackware . | . . . . Protection 3 | 2 . . 1 Artifact . | . . . . Weapon 5 | 2 . 2 1 Energy Gun 4 | 2 . 2 . Energy Cannon . | . . . . Ballistic Gun . | . . . . Ballistic Cannon 1 | . . . 1 Launcher . | . . . . Special Weapon . | . . . . Impact Weapon . | . . . . Slashing Weapon . | . . . . Piercing Weapon . | . . . . Special Melee Weapon . | . . . . Unidentified Prototypes . | . . . . Parts Lost 6 | . . . 6 Power 1 | . . . 1 Propulsion 2 | . . . 2 Utility 2 | . . . 2 Weapon 1 | . . . 1 Highest Loss Streak 6 | . . . 6 To Critical Strikes . | . . . . Average Backups 9 | 3 5 9 11 Power . | . . . . Propulsion . | . . . . Utility 5 | 2 3 8 5 Weapon 2 | . 1 1 4 Tool/Special . | . . . . Unused Backups 16 | . . . 16 Power . | . . . . Propulsion . | . . . . Utility 7 | . . . 7 Weapon 8 | . . . 8 Tool/Special 1 | . . . 1 Average Slot Usage (%) 98 | . 95 100 99 Engine 11 | . 11 12 11 Treads 24 | . 23 25 25 Device 5 | . . . 10 Storage 11 | . 11 12 12 Protection 18 | . 24 25 13 Energy Gun 18 | . 23 25 14 Ballistic Cannon 5 | . . . 10 Peak Build Rating 19 | 7 8 14 19 Average Rating 13 | 4 7 11 17 On Entrance 7 | . 7 8 14 Avg Prop Armor Cover (%) . | . . . . Naked Turns . | . . . . Heaviest Build 97 | 11 21 25 97 Greatest Support 40 | 40 40 40 40 Greatest Overweight (x) 6 | 3 6 . 2 Average Overweight (x) . | . . . . Largest Inventory Capacity 25 | 10 10 10 25 Average Capacity 13 | 6 9 10 17 Most Carried 15 | 9 10 10 15 Average Carried 9 | 4 5 9 11 Final Capacity 25 | 5 10 10 25 Final Carried 15 | 4 10 10 15 Class Distribution -------------------- 100% | Hacker-Mutant Dominant Class ---------------- Hacker-Mutant | -10/Materials Hacker-Mutant | -10/Mines Hacker-Mutant | -10/Subcaves Resources | -11 -10 -10 -10 ----------- Run | Yrd Mat Min Sub Matter Collected 810 | 172 198 100 340 Remotely . | . . . . Salvage Created 1418 | 103 486 267 562 Parts 88 | 6 25 15 42 Haulers Intercepted . | . . . . Recyclers Shooed 2 | . 2 . . Parts Field Recycled . | . . . . Retrieved Matter . | . . . . Parts Self-Destructed . | . . . . Prevented . | . . . . Parts Restored . | . . . . Kills | -11 -10 -10 -10 ------- Run | Yrd Mat Min Sub Combat Hostiles Destroyed 33 | . 10 7 16 Guns 25 | . 8 6 11 Cannons 5 | . . . 5 Classes Destroyed 10 | 2 5 . 3 Worker 1 | . 1 . . Builder 3 | . 2 1 . Tunneler 1 | 1 . . . Recycler 1 | 1 . . . Turret 2 | . . . 2 Watcher 3 | . 3 . . Swarmer 8 | . 2 2 4 Grunt 15 | . 8 5 2 Artisan 3 | . . . 3 Subdweller 10 | . . . 10 Best Kill Streak 6 | 2 3 2 6 Combat Bots Only 4 | . 3 2 4 Max Kills in Single Turn 2 | 1 2 1 2 Gunslinging . | . . . . Exploded . | . . . . Melee . | . . . . Uniques/NPCs Destroyed . | . . . . Combat | -11 -10 -10 -10 -------- Run | Yrd Mat Min Sub Hostile Shots Fired 180 | . 43 19 118 Missed 59 | . 16 7 36 Hits 121 | . 27 12 82 Projectile 121 | . 27 12 82 Critical Strikes 3 | . . . 3 Damage Taken 1244 | . 165 92 987 Core 255 | . 26 13 216 Absorbed by Shields . | . . . . Redirected to Shielding 12 | . 5 3 4 Ignored by Resistances 759 | . 111 56 592 Core Remaining (%) 100 | 100 . . . Volleys Fired 156 | 2 41 21 92 Largest 2 | 2 2 2 2 Hottest 140 | 100 100 125 140 Shots Fired 307 | 4 82 39 182 Gun 233 | 4 82 39 108 Cannon 74 | . . . 74 Launcher . | . . . . Special . | . . . . Kinetic 74 | . . . 74 Thermal 233 | 4 82 39 108 Explosive . | . . . . Electromagnetic . | . . . . Robot Hit Streak 56 | 2 14 17 56 Robot Miss Streak 2 | 1 2 1 2 Penetration Max . | . . . . Secondary Targets 1 | . . . 1 Max Gunslinging Chain 1 | . . . 1 Shots Hit Robots 209 | 3 64 32 110 Core Hits 80 | 3 26 14 37 Critical Kills . | . . . . Critical Parts Destroyed . | . . . . Critical Strikes 26 | . 10 6 10 Burn 24 | . 10 6 8 Blast 2 | . . . 2 Melee Attacks . | . . . . Impact . | . . . . Slashing . | . . . . Piercing . | . . . . Sneak Attacks . | . . . . Combat Hostiles . | . . . . Follow-up Attacks . | . . . . Damage Inflicted 3471 | 38 821 471 2141 Guns 2545 | 38 814 471 1222 Cannons 919 | . . . 919 Explosions . | . . . . Melee . | . . . . Ramming 7 | . 7 . . Kinetic 919 | . . . 919 Thermal 2545 | 38 814 471 1222 Explosive . | . . . . Electromagnetic . | . . . . Impact . | . . . . Slashing . | . . . . Piercing . | . . . . Highest Corruption . | . . . . Average Corruption . | . . . . Corruption Purged . | . . . . Corruption Blocked . | . . . . Overload Shots . | . . . . Overflow Damage . | . . . . Projectiles . | . . . . Explosions . | . . . . Melee . | . . . . Knockbacks 8 | . . . 8 Impact . | . . . . Kinetic 7 | . . . 7 Secondary 1 | . . . 1 Self-Inflicted Damage . | . . . . Shots . | . . . . Rammed 1 | . 1 . . Targets Rammed 1 | . 1 . . Kicked . | . . . . Crushed . | . . . . Highest Temperature 279 | 39 275 279 174 Average Temperature 88 | 20 80 117 68 Received Heat Transfer 770 | . 102 75 593 Effects 2 | . 1 1 . Energy Bleed 1 | . 1 . . Interference 1 | . . 1 . Siege Activations . | . . . . Martial Activations . | . . . . Shielding Activations . | . . . . Robots Disrupted . | . . . . Combat Hostiles . | . . . . Robots Corrupted . | . . . . Combat Hostiles . | . . . . Parts Fried . | . . . . Impact Corruptions . | . . . . Robots Melted 3 | . 2 1 . Combat Hostiles 3 | . 2 1 . Parts Melted 12 | 1 8 1 2 Heat Transferred 7733 | 111 3145 1628 2849 Parts Sabotaged . | . . . . Parts Stolen . | . . . . Parts Stripped . | . . . . Power Chain Reactions . | . . . . Alert | -11 -10 -10 -10 ------- Run | Yrd Mat Min Sub Maximum Alert Level . | . . . . Low Security (%) 100 | 100 100 100 . Level 1 . | . . . . Level 2 . | . . . . Level 3 . | . . . . Level 4 . | . . . . Level 5 . | . . . . High Security . | . . . . Max Security . | . . . . Peak Influence 50 | 10 50 50 . Initial . | . . . . Average 5 | 1 6 4 . Influence Increases 715 | 10 305 185 215 Destroy 0b10 Robot/C 500 | . 200 140 160 Destroy 0b10 Robot/NC 45 | 10 30 5 . Destroy Leader 96 | . 46 40 10 Successful Hack 14 | . 14 . . Lose Combat Pursuer 60 | . 15 . 45 Influence Decreases 715 | 10 305 185 215 Time Decay 715 | 10 305 185 215 Squads Dispatched 1 | . 1 . . Investigation 1 | . 1 . . Extermination . | . . . . Reinforcement . | . . . . Assault . | . . . . Garrison . | . . . . Intercept . | . . . . Searches Triggered . | . . . . Construction Impeded . | . . . . Haulers Reinforced . | . . . . Active Scanning Responses . | . . . . Cargo Convoy Interrupts . | . . . . Stealth | -11 -10 -10 -10 --------- Run | Yrd Mat Min Sub Distress Signals 1 | . 1 . . Communications Jammed . | . . . . Distress Signals . | . . . . Times Spotted 44 | . 14 8 22 Peak Tracking Total 4 | . 4 2 3 Tactical Retreats 2 | . 1 . 1 Traps | -11 -10 -10 -10 ------- Run | Yrd Mat Min Sub Traps Triggered 8 | . 8 . . Indirectly . | . . . . Trap Hack Attempts . | . . . . Triggered . | . . . . Disarmed . | . . . . Reprogrammed . | . . . . Reused . | . . . . Traps Extracted . | . . . . Installed . | . . . . Triggered . | . . . . Machines | -11 -10 -10 -10 ---------- Run | Yrd Mat Min Sub Machines Disabled 2 | . . . 2 Max in Single Turn 1 | . . . 1 Machines Repaired . | . . . . Machines Dismantled . | . . . . Machines Sabotaged . | . . . . Overloaded Fab Kills . | . . . . Hacking | -11 -10 -10 -10 --------- Run | Yrd Mat Min Sub Machines Accessed 10 | . 8 . 2 Terminals 7 | . 7 . . Fabricators . | . . . . Repair Stations . | . . . . Recycling Units 1 | . 1 . . Scanalyzers . | . . . . Garrison Access . | . . . . Total Hacks 29 | . 23 . 6 Successful 20 | . 14 . 6 Failed 9 | . 9 . . Catastrophic . | . . . . Database Lockouts . | . . . . Manual 10 | . 10 . . Terminals 19 | . 19 . . Fabricators . | . . . . Repair Stations . | . . . . Recycling Units 4 | . 4 . . Scanalyzers . | . . . . Garrison Access . | . . . . Terminal Hacks 15 | . 9 . 6 Record 8 | . 3 . 5 Robot Analysis 1 | . 1 . . Alert Level 5 | . 5 . . Proto ID Catalog 1 | . . . 1 Fabricator Hacks . | . . . . Repair Station Hacks . | . . . . Recycling Unit Hacks . | . . . . Scanalyzer . | . . . . Garrison Access Hacks . | . . . . Unauthorized Hacks 5 | . 5 . . Terminals 5 | . 5 . . Botnet 5 | . 5 . . Fabricators . | . . . . Repair Stations . | . . . . Recycling Units . | . . . . Scanalyzers . | . . . . Garrison Access . | . . . . Data Cores Recovered . | . . . . Used . | . . . . Hacking Detections 6 | . 6 . . Full Trace Events 2 | . 2 . . Feedback Events . | . . . . Feedback Blocked . | . . . . Robot Schematics Acquired . | . . . . Robots Built . | . . . . Authchips . | . . . . Time . | . . . . Total Robot Build Rating . | . . . . Part Schematics Acquired . | . . . . Parts Built . | . . . . Authchips . | . . . . Time . | . . . . Total Part Build Rating . | . . . . Part Studies Acquired . | . . . . Parts Repaired . | . . . . Time . | . . . . Parts Recycled . | . . . . Recycled Matter . | . . . . Retrieved Matter . | . . . . Retrieved Components . | . . . . Parts Scanalyzed . | . . . . Part Schematics Acquired . | . . . . Parts Damaged . | . . . . Bothacking | -11 -10 -10 -10 ------------ Run | Yrd Mat Min Sub Used RIF Installer . | . . . . Robots Hacked . | . . . . Non-combat . | . . . . Combat . | . . . . Robot Hacks Applied . | . . . . Relay Couplers Released . | . . . . Fabnet Peak Effective % . | . . . . Robots Rewired . | . . . . Allies Hacked . | . . . . Hacks Repelled . | . . . . Allies | -11 -10 -10 -10 -------- Run | Yrd Mat Min Sub Total Allies . | . . . . Largest Group . | . . . . Highest-Rated Group . | . . . . Highest-Rated Ally . | . . . . Total Orders . | . . . . Ally Attacks . | . . . . Total Damage . | . . . . Kills . | . . . . Allies Corrupted . | . . . . Allies Melted . | . . . . Intel | -11 -10 -10 -10 ------- Run | Yrd Mat Min Sub Active Infowar (turns) . | . . . . Robot Analysis Total 1 | . 1 . . Derelict Logs Recovered . | . . . . Drone Launches . | . . . . Drone Recoveries . | . . . . Exploration | -11 -10 -10 -10 ------------- Run | Yrd Mat Min Sub Turns Passed 5017 | 71 1289 1061 2596 Spaces Moved 2377 | 36 682 591 1068 Core 40 | 18 22 . . Treads 2337 | 18 660 591 1068 Legs . | . . . . Wheels . | . . . . Hover . | . . . . Flight . | . . . . Fastest Speed 50 | 50 160 160 160 Average Speed 182 | 125 161 160 211 Slowest Speed 350 | 200 350 160 340 Overloaded Moves . | . . . . Propulsion Burnouts . | . . . . Robots Hopped . | . . . . Potential Cave-ins . | . . . . Cave-ins Triggered . | . . . . Exploration Rate (%) 68 | 4 96 99 75 Regions Visited 3 Branch Regions 2 Pre-discovered Areas . | . . . . Known Exits Taken 3 | 1 1 1 . Unknown Exits Taken . | . . . . Scrap Searched 7 | . . . 7 Spaces Dug . | . . . . Terrain Destroyed . | . . . . Melee . | . . . . Projectile . | . . . . AOE . | . . . . Terrain Rammed . | . . . . Walls Destroyed . | . . . . Machines Disabled . | . . . . Actions | -11 -10 -10 -10 --------- Run | Yrd Mat Min Sub Total 2741 | 58 784 672 1227 Wait 132 | 2 34 48 48 Move 2374 | 35 681 590 1068 Hop . | . . . . Pick Up 35 | 10 13 3 9 Fast Attach 8 | 1 7 . . Attach 16 | 7 7 1 1 Detach 1 | 1 . . . Swap 8 | . . 4 4 Drop 10 | . . 5 5 Fire 156 | 2 41 21 92 Melee . | . . . . Ram . | . . . . Kick . | . . . . Crush 1 | . 1 . . Escape Stasis . | . . . . Rewire . | . . . . Trap . | . . . . Miscellaneous . | . . . . Route ------- -11/Scrapyard -10/Materials (discovered 5 exits: *Mat x3 / *Min / *Sub) -10/Mines (discovered 4 exits: *Mat x2 / *Exi / *Sub) -10/Subcaves (discovered 3 exits: *Mat x2 / *Rec) History --------- Turn | Location | Event 20 | -11/Scrapyard | Identified exit to Materials 20 | -11/Scrapyard | Discovered exit to Materials (range 15) 72 | -11/Scrapyard | Entered Materials 72 | -10/Materials | Evolved 1 slot: Utility x1 297 | -10/Materials | Identified exit to Materials 297 | -10/Materials | Discovered exit to Materials (range 10) 315 | -10/Materials | Build established: Hacker-Mutant 613 | -10/Materials | Identified exit to Subcaves 613 | -10/Materials | Discovered exit to Subcaves (range 9) 899 | -10/Materials | Discovered exit to Materials (range 12) 1122 | -10/Materials | Discovered exit to Materials (range 7) 1307 | -10/Materials | Identified exit to Mines 1307 | -10/Materials | Discovered exit to Mines (range 6) 1361 | -10/Materials | Entered Mines 1403 | -10/Mines | Met a Derelict bent on vengeance 1474 | -10/Mines | Discovered exit to Materials (range 14) 1592 | -10/Mines | Found a hidden stash of uninstalled traps 1977 | -10/Mines | Received a Rocket Launcher from a helpful Derelict 2081 | -10/Mines | Deemed a non-threat by the Exiles lab entrance 2081 | -10/Mines | Identified exit to Exiles 2081 | -10/Mines | Discovered exit to Exiles (range 5) 2349 | -10/Mines | Discovered exit to Materials (range 9) 2411 | -10/Mines | Discovered exit to Subcaves (range 6) 2422 | -10/Mines | Entered Subcaves 2423 | -10/Subcaves | Approached by a straggling Scientist 2472 | -10/Subcaves | Identified exit to Materials 2472 | -10/Subcaves | Discovered exit to Materials (range 13) 3015 | -10/Subcaves | Visited 4L-MR0's lab 3203 | -10/Subcaves | A swath of the cavern ceiling suddenly collapsed 3477 | -10/Subcaves | A swath of the cavern ceiling suddenly collapsed 3535 | -10/Subcaves | Shifting Twisted Machinery released Sub. Power Source 3654 | -10/Subcaves | Identified exit to Recycling 3654 | -10/Subcaves | Discovered exit to Recycling (range 12) 3668 | -10/Subcaves | Visited Clippyterm 3672 | -10/Subcaves | Learned Factory emergency access door positions 3672 | -10/Subcaves | Learned Factory garrison access intel 3806 | -10/Subcaves | Ambushed by angry Subdweller bent on revenge 3884 | -10/Subcaves | Shifting Twisted Machinery released Riot Gun 3955 | -10/Subcaves | Discovered exit to Materials (range 10) 4982 | -10/Subcaves | Core integrity fell below 50% 5009 | -10/Subcaves | Core integrity fell below 20% 5018 | -10/Subcaves | Destroyed by 4N-AKC(R) with Subdweller Laser Last Messages --------------- we haven't found any suitable candidates yet." 04815_ CR-JOV(R) destroyed. 04825_ Acquired 21 matter. 04837_ Subatomizers dissect the Sub. Monowheel. 04853_ Acquired Mak. Axe. 04864_ Acquired Mak. Shrapnel Gun. 04867_ Subatomizers dissect the Sub. Monowheel. 04872_ Acquired Sub. Beam Cannon. 04975_ Lgt. Armor Plating destroyed. 04976_ YN-KXA(R) knocked back. 04987_ Ion Engine destroyed. 04997_ Destroyed Scrap Shield. 04997_ YN-KXA(R) Sub. Power Source blasted off. 04997_ YN-KXA(R) knocked back. 05006_ BB-WYI(R) knocked back. 05008_ Imp. Heat Sink destroyed. 05009_ 4N-AKC(R) knocked back. 05010_ Battle Cannon destroyed. 05016_ Spk. Treads destroyed. 05018_ Lgt. Treads destroyed. Map ----- +----------------------------------------------------+ | ?????????????????????????????????????????? | | ?????????????????????????????????????????? | | ?????????????????????????????????????????? | | ?????????????????????????????????????????? | | ?????????????????????????????????????????? | | ?????????????????????????????????????????? | | ???????????????????????????????????????### | | ?????????????????????????????????####### | | ?????????????????????????????????# | | ???????????????????????#####?????# ! | | ?????????????????????### ##????##&&! ### | | ?????????????????????# ##???###%###?? | | ?????????????????????# #####=%## ##? | | ?????????????????????# ## | | ??????????????????????# *! | | ?????????????????????## &%!=### # | | ?????????????????????#""" ""#%##### | | ???????????????####### *## ##### | | ???????????????# # ## " ##" ##### | | ???????????????## " ##"" ## # | | ???????????????# #"" """"### """ | | ???????????????# =#####"#### " " | | ???????????????# "#??###?# " "" # | | ???????????????## "#?????#"""##""" ### | | ???????????????## ##?????#""#?#"""" #?? | | ???????????????# @#???????????# " #? | | ???????????????# %"?????????? "" #? | | ??????????????# R#????????? ## " #? | | ??????????????# R%R ????????##?##"" ##? | | ??????????????# % ???????????? "###?? | | ??????????????# % % ????????????##???? | | ??????????????### ????????????????? | | ????????????????# ] ### ???????????????? | | ????????????????##"""#?? #?????????????? | | ??????????????????""##??? #????????????? | | ?????????????????? "????? ????????????? | | ?????????????????? ???????? ????????????? | | ?????????????????????????????????????????? | | ?????????????????????????????????????????? | | ?????????????????????????????????????????? | | ?????????????????????????????????????????? | | ?????????????????????????????????????????? | | ?????????????????????????????????????????? | | ?????????????????????????????????????????? | | ?????????????????????????????????????????? | | ?????????????????????????????????????????? | | ?????????????????????????????????????????? | | ?????????????????????????????????????????? | | ?????????????????????????????????????????? | | ?????????????????????????????????????????? | +----------------------------------------------------+ Best States ------------- Heat Dissipation 39 Energy Generation 10 Energy Capacity 250 Matter Stores 300 Matter Capacity 300 Sight Range 16 Terrain Scan Density 10 Armor Coverage 150 Resistance: KI 35 Resistance: TH 35 Resistance: EX 35 Resistance: EM 35 Resistance: I 35 Resistance: S 35 Resistance: P 35 Core Shielding 20 Evasion (%) 50 Recoil Reduction 2 Offensive Hacking 20 Item Schematics ----------------- None Robot Schematics ------------------ None Fabricated ------------ Nothing Repaired ---------- Nothing Studied --------- None Alien Tech Used ----------------- None Achievements -------------- None Challenges ------------ None Game ------ Seed ProjectionGrapheneStorm Manual? 0 Play Time 00:18:09 Cumulative 256.7 hours Start 2026.01.07 @ 10:43:00 End 2026.01.07 @ 11:04:32 Sessions 1 Manual Loads 0 Difficulty Explorer Special Mode None Game No. 406 Rogue 0 Adventurer 0 Explorer 406 Win Type - Total 0 Types 0/0/0/0/0/0/0/0/0/0 Lore% 72 Gallery% 69 Achievement% 54 Wizard Run 0 Options --------- Layout 1 ASCII 0 Keyboard 0 Movement Mouse Keybinds 0 Fullscreen 1 Font 24/Smallcaps Map View 50x35 Zoom Use 0% Tactical HUD 1 Map Filters NONE Filters NONE Steam 1 RUN: dec01247-786c-4462-98d1-bb5066dc8a08